Cogmind - Beta 15 @@@ ROGUE MODE // 2025.07.30 @ 21:15:55 Player: BattleBruvva Result: Destroyed by AC-YGQ(R) with Subdweller Laser Performance ------------- Evolutions (0) 0 Regions Visited (2) 400 Robots Destroyed (32) 160 Value Destroyed (811) 811 Prototype IDs (0) 0 Alien Tech Used (0) 0 Bonus (0) 0 TOTAL SCORE: 1371 Bonus ------- None Cogmind --------- Core Integrity 0/250 Matter 223/300 Energy 199/200 System Corruption 1% Temperature Cool (6) Movement Rolling (150) Ox4 Location -10/Subcaves Parts ------- > --- POWER (1) -------- Subdweller Power Source > --- PROPULSION (2) --- Subdweller Monowheel Subdweller Monowheel > --- UTILITY (2) ------ Huge Storage Unit Core Shielding (fused) > --- WEAPON (2) ------- Battle Rifle Grenade Launcher > --- INVENTORY (25) --- Subdweller Power Source Subdweller Power Source Subdweller Monowheel Heat Sink Heat Sink Large Battery (200) Subdweller Optics Subdweller Optics Terrain Scanner Seismic Detector Armor Integrity Analyzer Propulsion Shielding Scrap Shield Hacking Suite Tractor Beam Subdweller Beam Cannon Subdweller Machine Gun Barrage Gun Battle Cannon Battle Cannon Bore Cannon Grenade Launcher Datajack Peak State ------------ > --- POWER ------------ Subdweller Power Source > --- PROPULSION ------- Subdweller Monowheel Subdweller Monowheel > --- UTILITY ---------- Huge Storage Unit Core Shielding > --- WEAPON ----------- Battle Rifle Bore Cannon > --- INVENTORY -------- Light Ion Engine Subdweller Power Source Light Treads Light Treads Wheel Heat Sink Heat Sink Large Battery Subdweller Optics Subdweller Optics Terrain Scanner Seismic Detector Armor Integrity Analyzer Propulsion Shielding Scrap Shield Hacking Suite Tractor Beam Subdweller Machine Gun Barrage Gun Battle Cannon Battle Cannon Grenade Launcher Grenade Launcher Datajack [Rating: 19] Favorites ----------- Power Light Ion Engine Engine Light Ion Engine Propulsion Light Treads Treads Light Treads Wheel Subdweller Monowheel Utility Huge Storage Unit Device Seismic Detector Storage Huge Storage Unit Protection Core Shielding Weapon Assault Rifle Energy Gun Small Laser Ballistic Gun Assault Rifle Ballistic Cannon Bore Cannon Launcher Grenade Launcher Special Weapon Mining Laser Build | -11 -10 -10 ------- Run | Yrd Mat Sub Slots Evolved . | . . . Power . | . . . Propulsion . | . . . Utility . | . . . Weapon . | . . . Parts Attached 27 | 7 7 13 Power 5 | 1 1 3 Engine 5 | 1 1 3 Core . | . . . Reactor . | . . . Propulsion 7 | 2 2 3 Treads 2 | 2 . . Leg . | . . . Wheel 5 | . 2 3 Hover . | . . . Flight . | . . . Utility 5 | 2 3 . Device 1 | 1 . . Storage 3 | 1 2 . Processor . | . . . Hackware . | . . . Protection 1 | . 1 . Artifact . | . . . Weapon 10 | 2 1 7 Energy Gun 1 | . 1 . Energy Cannon . | . . . Ballistic Gun 4 | 2 . 2 Ballistic Cannon 2 | . . 2 Launcher 2 | . . 2 Special Weapon 1 | . . 1 Impact Weapon . | . . . Slashing Weapon . | . . . Piercing Weapon . | . . . Special Melee Weapon . | . . . Unidentified Prototypes . | . . . Parts Lost 2 | . . 2 Power 1 | . . 1 Propulsion . | . . . Utility . | . . . Weapon 1 | . . 1 Highest Loss Streak 1 | . . 1 To Critical Strikes . | . . . Average Backups 15 | 3 11 21 Power 1 | . 1 1 Propulsion 1 | 1 2 1 Utility 6 | . 3 11 Weapon 4 | . 3 6 Tool/Special . | . . . Unused Backups 17 | . . 17 Power 1 | . . 1 Propulsion . | . . . Utility 11 | . . 11 Weapon 4 | . . 4 Tool/Special 1 | . . 1 Average Slot Usage (%) 99 | . 100 99 Engine 13 | . 14 13 Treads 11 | . 20 . Wheel 16 | . 7 28 Device 6 | . 12 . Storage 14 | . 14 14 Protection 7 | . 2 14 Energy Gun 1 | . 2 . Ballistic Gun 20 | . 25 13 Ballistic Cannon 5 | . . 12 Peak Build Rating 19 | 7 8 19 Average Rating 11 | 5 7 16 On Entrance 5 | . 7 8 Naked Turns . | . . . Heaviest Build 98 | 12 87 98 Greatest Support 40 | 40 40 40 Greatest Overweight (x) 4 | . 4 4 Average Overweight (x) 1 | . 1 2 Largest Inventory Capacity 25 | 8 25 25 Average Capacity 20 | 7 17 25 Most Carried 25 | 5 16 25 Average Carried 15 | 3 11 22 Final Capacity 25 | 8 25 25 Final Carried 24 | 5 16 24 Class Distribution -------------------- 80% | Mutant 19% | Scavenger-Mutant Dominant Class ---------------- Mutant | -10/Materials Mutant | -10/Subcaves Resources | -11 -10 -10 ----------- Run | Yrd Mat Sub Matter Collected 1002 | 226 316 460 Remotely . | . . . Salvage Created 832 | 88 369 375 Parts 67 | 4 35 28 Haulers Intercepted . | . . . Recyclers Shooed 3 | . 3 . Parts Field Recycled . | . . . Retrieved Matter . | . . . Parts Self-Destructed 5 | . . 5 Prevented . | . . . Kills | -11 -10 -10 ------- Run | Yrd Mat Sub Combat Hostiles Destroyed 27 | . 15 12 Guns 18 | . 15 3 Cannons 6 | . . 6 AOE 3 | . . 3 Classes Destroyed 7 | 2 4 1 Worker 1 | . 1 . Tunneler 2 | 1 1 . Recycler 1 | 1 . . Operator 1 | . 1 . Swarmer 9 | . 9 . Grunt 6 | . 6 . Subdweller 12 | . . 12 Best Kill Streak 7 | 2 4 7 Combat Bots Only 7 | . 3 7 Max Kills in Single Turn 4 | 1 2 4 Gunslinging . | . . . Exploded 3 | . . 3 Melee . | . . . Uniques/NPCs Destroyed . | . . . Combat | -11 -10 -10 -------- Run | Yrd Mat Sub Hostile Shots Fired 120 | . 74 46 Missed 31 | . 17 14 Hits 89 | . 57 32 Projectile 89 | . 57 32 Critical Strikes 1 | . . 1 Damage Taken 1269 | . 576 693 Core 265 | . 138 127 Absorbed by Shields . | . . . Redirected to Shielding 34 | . 5 29 Core Remaining (%) 100 | 100 . . Volleys Fired 105 | 6 59 40 Largest 2 | 2 2 2 Hottest 78 | 40 60 78 Shots Fired 197 | 12 118 67 Gun 159 | 12 118 29 Cannon 31 | . . 31 Launcher 7 | . . 7 Special . | . . . Kinetic 175 | 12 103 60 Thermal 15 | . 15 . Explosive 7 | . . 7 Electromagnetic . | . . . Robot Hit Streak 6 | 2 6 6 Robot Miss Streak 6 | 2 6 2 Penetration Max 1 | . . 1 Secondary Targets 2 | . 2 . Max Gunslinging Chain 1 | . 1 . Shots Hit Robots 114 | 4 66 44 Core Hits 57 | 4 28 25 Critical Kills 5 | . 1 4 Critical Parts Destroyed 2 | . 1 1 Critical Strikes 12 | . 2 10 Destroy 12 | . 2 10 Melee Attacks . | . . . Impact . | . . . Slashing . | . . . Piercing . | . . . Sneak Attacks . | . . . Combat Hostiles . | . . . Follow-up Attacks . | . . . Damage Inflicted 2043 | 53 744 1246 Guns 1107 | 53 728 326 Cannons 494 | . . 494 Explosions 426 | . . 426 Melee . | . . . Ramming 16 | . 16 . Kinetic 1505 | 53 632 820 Thermal 96 | . 96 . Explosive 426 | . . 426 Electromagnetic . | . . . Impact . | . . . Slashing . | . . . Piercing . | . . . Highest Corruption 1 | . 1 1 Average Corruption 1 | . 1 1 Corruption Purged . | . . . Corruption Blocked . | . . . Effects 7 | . 1 6 Message Errors 1 | . 1 . Matter Fused 1 | . . 1 Heat Flow Errors 3 | . . 3 Energy Discharges 1 | . . 1 Parts Fused 1 | . . 1 Overload Shots . | . . . Overflow Damage . | . . . Projectiles . | . . . Explosions . | . . . Melee . | . . . Knockbacks 8 | . 1 7 Impact 1 | . 1 . Kinetic 7 | . . 7 Secondary . | . . . Self-Inflicted Damage 26 | . 7 19 Shots 1 | . . 1 Rammed 4 | . 4 . Targets Rammed 4 | . 4 . Kicked . | . . . Crushed . | . . . Highest Temperature 235 | . 44 235 Average Temperature 33 | . 17 84 Received Heat Transfer 309 | . 186 123 Siege Activations . | . . . Martial Activations . | . . . Shielding Activations . | . . . Robots Disrupted . | . . . Combat Hostiles . | . . . Robots Corrupted . | . . . Combat Hostiles . | . . . Parts Fried . | . . . Impact Corruptions . | . . . Robots Melted . | . . . Combat Hostiles . | . . . Parts Melted 2 | . 2 . Heat Transferred 225 | . 225 . Parts Sabotaged . | . . . Parts Stolen . | . . . Parts Stripped . | . . . Power Chain Reactions . | . . . Alert | -11 -10 -10 ------- Run | Yrd Mat Sub Maximum Alert Level . | . . . Low Security (%) 100 | 100 100 . Level 1 . | . . . Level 2 . | . . . Level 3 . | . . . Level 4 . | . . . Level 5 . | . . . High Security . | . . . Max Security . | . . . Peak Influence 132 | 10 132 . Initial . | . . . Average 40 | . 43 . Influence Increases 453 | 10 443 . Destroy 0b10 Robot/C 300 | . 300 . Destroy 0b10 Robot/NC 25 | 10 15 . Destroy Leader 50 | . 50 . Successful Hack 33 | . 33 . Lose Combat Pursuer 45 | . 45 . Influence Decreases 453 | 10 437 6 Entered New Map 4 | . . 4 Time Decay 449 | 10 437 2 Squads Dispatched 4 | . 4 . Investigation 1 | . 1 . Extermination . | . . . Reinforcement 3 | . 3 . Assault . | . . . Garrison . | . . . Intercept . | . . . Searches Triggered . | . . . Construction Impeded . | . . . Haulers Reinforced . | . . . Active Scanning Responses . | . . . Cargo Convoy Interrupts . | . . . Stealth | -11 -10 -10 --------- Run | Yrd Mat Sub Distress Signals 1 | . 1 . Communications Jammed . | . . . Distress Signals . | . . . Times Spotted 49 | . 35 14 Peak Tracking Total 6 | . 5 6 Tactical Retreats 2 | . 2 . Traps | -11 -10 -10 ------- Run | Yrd Mat Sub Traps Triggered 1 | . 1 . Indirectly . | . . . Trap Hack Attempts . | . . . Triggered . | . . . Disarmed . | . . . Reprogrammed . | . . . Reused . | . . . Traps Extracted . | . . . Installed . | . . . Triggered . | . . . Machines | -11 -10 -10 ---------- Run | Yrd Mat Sub Machines Disabled . | . . . Max in Single Turn . | . . . Machines Repaired . | . . . Machines Dismantled . | . . . Machines Sabotaged . | . . . Overloaded Fab Kills . | . . . Hacking | -11 -10 -10 --------- Run | Yrd Mat Sub Machines Accessed 9 | . 9 . Terminals 7 | . 7 . Fabricators . | . . . Repair Stations . | . . . Recycling Units 2 | . 2 . Scanalyzers . | . . . Garrison Access . | . . . Total Hacks 22 | . 22 . Successful 17 | . 17 . Failed 5 | . 5 . Catastrophic . | . . . Database Lockouts . | . . . Manual 7 | . 7 . Terminals 19 | . 19 . Fabricators . | . . . Repair Stations . | . . . Recycling Units 3 | . 3 . Scanalyzers . | . . . Garrison Access . | . . . Terminal Hacks 11 | . 11 . Record 2 | . 2 . Robot Analysis 3 | . 3 . Emergency Access Points 1 | . 1 . Alert Level 2 | . 2 . Zone Layout 3 | . 3 . Fabricator Hacks . | . . . Repair Station Hacks . | . . . Recycling Unit Hacks 1 | . 1 . Report Inventory 1 | . 1 . Scanalyzer . | . . . Garrison Access Hacks . | . . . Unauthorized Hacks 3 | . 3 . Terminals 3 | . 3 . Botnet 3 | . 3 . Fabricators . | . . . Repair Stations . | . . . Recycling Units . | . . . Scanalyzers . | . . . Garrison Access . | . . . Data Cores Recovered . | . . . Used . | . . . Hacking Detections 5 | . 5 . Full Trace Events 2 | . 2 . Feedback Events . | . . . Feedback Blocked . | . . . Robot Schematics Acquired . | . . . Robots Built . | . . . Authchips . | . . . Time . | . . . Total Robot Build Rating . | . . . Part Schematics Acquired . | . . . Parts Built . | . . . Authchips . | . . . Time . | . . . Total Part Build Rating . | . . . Parts Repaired . | . . . Time . | . . . Parts Recycled . | . . . Recycled Matter . | . . . Retrieved Matter . | . . . Retrieved Components . | . . . Parts Scanalyzed . | . . . Part Schematics Acquired . | . . . Parts Damaged . | . . . Bothacking | -11 -10 -10 ------------ Run | Yrd Mat Sub Used RIF Installer . | . . . Robots Hacked . | . . . Non-combat . | . . . Combat . | . . . Robot Hacks Applied . | . . . Relay Couplers Released . | . . . Fabnet Peak Effective % . | . . . Robots Rewired . | . . . Allies Hacked . | . . . Hacks Repelled . | . . . Allies | -11 -10 -10 -------- Run | Yrd Mat Sub Total Allies . | . . . Largest Group . | . . . Highest-Rated Group . | . . . Highest-Rated Ally . | . . . Total Orders . | . . . Ally Attacks . | . . . Total Damage . | . . . Kills . | . . . Allies Corrupted . | . . . Allies Melted . | . . . Intel | -11 -10 -10 ------- Run | Yrd Mat Sub Active Infowar (turns) 1339 | 26 1313 . Seismic 1339 | 26 1313 . Robot Analysis Total 3 | . 3 . Derelict Logs Recovered 2 | . . 2 Drone Launches . | . . . Drone Recoveries . | . . . Exploration | -11 -10 -10 ------------- Run | Yrd Mat Sub Turns Passed 2824 | 131 1528 1165 Spaces Moved 1590 | 68 748 774 Core 8 | 8 . . Treads 577 | 60 517 . Legs . | . . . Wheels 1005 | . 231 774 Hover . | . . . Flight . | . . . Fastest Speed 50 | 50 140 130 Average Speed 152 | 147 174 132 Slowest Speed 320 | 160 320 150 Overloaded Moves . | . . . Propulsion Burnouts . | . . . Robots Hopped . | . . . Potential Cave-ins . | . . . Cave-ins Triggered . | . . . Exploration Rate (%) 45 | 5 84 48 Regions Visited 2 Branch Regions 1 Pre-discovered Areas 1 | . . 1 Known Exits Taken . | . . . Unknown Exits Taken 2 | 1 1 . Scrap Searched . | . . . Spaces Dug . | . . . Terrain Destroyed 43 | . . 43 Melee . | . . . Projectile 6 | . . 6 AOE 37 | . . 37 Terrain Rammed . | . . . Walls Destroyed . | . . . Machines Disabled . | . . . Actions | -11 -10 -10 --------- Run | Yrd Mat Sub Total 1797 | 85 860 852 Wait 29 | . 27 2 Move 1588 | 67 747 774 Hop . | . . . Pick Up 30 | 5 12 13 Fast Attach 7 | 7 . . Attach 2 | . . 2 Detach . | . . . Swap 21 | . 8 13 Drop 11 | . 3 8 Fire 105 | 6 59 40 Melee . | . . . Ram 3 | . 3 . Kick . | . . . Crush 1 | . 1 . Escape Stasis . | . . . Rewire . | . . . Trap . | . . . Miscellaneous . | . . . Route ------- -11/Scrapyard -10/Materials (discovered 3 exits: [*Mat] / [*Min] / [*Sub]) -10/Subcaves History --------- Turn | Location | Event 22 | -11/Scrapyard | Discovered new exit (range 16) 132 | -11/Scrapyard | Entered Materials 304 | -10/Materials | Build established: Mutant 631 | -10/Materials | Discovered new exit (range 16) 1407 | -10/Materials | Discovered new exit (range 14) 1459 | -10/Materials | Core integrity fell below 50% 1651 | -10/Materials | Discovered new exit (range 6) 1660 | -10/Materials | Entered Subcaves 1689 | -10/Subcaves | Learned 4 Materials zone layouts 1702 | -10/Subcaves | Shifting Twisted Machinery released Sub. Machine Gun 1789 | -10/Subcaves | Shifting Twisted Machinery released Scrap Shield 2008 | -10/Subcaves | Ambushed by swarm of Subdwellers 2066 | -10/Subcaves | Destroyed 7 combat bots 2618 | -10/Subcaves | Core integrity fell below 20% 2697 | -10/Subcaves | Learned location of Zion (-6) 2825 | -10/Subcaves | Destroyed by AC-YGQ(R) with Subdweller Laser Last Messages --------------- 02588_ System corrupted: Energy discharge (-42). 02591_ Acquired 6 matter. 02614_ BL-E83(R): "OHNO!" 02618_ BL-E83(R) destroyed. 02632_ Acquired 44 matter. 02635_ Acquired 4 matter. 02654_ Acquired Sub. Power Source. 02658_ Dropped Lgt. Ion Engine. 02670_ Acquired 20 matter. 02673_ Acquired 44 matter. 02697_ Acquired derelict log, extracted data. World map updated: -6/Zion. 02711_ System corrupted: Core Shielding fused. 02721_ Sub. Monowheel shoots sparks and powers down. 02779_ System corrupted: Heat flow error (+121). 02791_ NQ-H42(R) knocked back. 02800_ NQ-H42(R) destroyed. 02809_ Acquired 1 matter. 02810_ Acquired 20 matter. Map ----- +----------------------------------------------------+ | ??????????????????????????????????####### | | ????????????????????????????????### % | | ????????????????????????????????# % % | | ????????????????????????????????# %# ### | | ????????????????####???????????##% ####?# | | ???????????????## ???###????# ### | | ???????????????# ### ???## % | | ???????????????# ??## | | ???????????????# ??# % # ### | | ??????????????????# ### ###?? | | ???????????????????# %]# #???? | | ??????????????????## ##???? | | ?????????????????## ##???? | | ???????????????### ## % #???? | | ???????????????# #### ###???? | | ???????????????# ### ##?# #?????? | | ???????????????## #??# ### ##?????? | | ????????????????### #?## &%### ## | | ???????????????#### #?## | | ???????????????# ### " | | ???????????????# ##### | | ??????????????## #### #???? | | ??????????????# #####??## #???? | | ??????????????## #####???????## #??? | | ???????????????## ##?????????????# #??? | | ???????????????##@ ##??????????????####??? | | ???????????????# % ??????????????????? | | ???????????????#& #???????????????? | | ???????????????#### RR ???????????? | | ??????????????????? """??????????? | | ???????????????????? ??????????? | | ????????????????????# # ??????????? | | ?????????????????????""" #????????????? | | ?????????????????????? ###????????????? | | ?????????????????????? ??????????????? | | ??????????????????????? ?????????????? | | ???????????????????????? ?? #????????????? | | ?????????????????????????????????????????? | | ?????????????????????????????????????????? | | ?????????????????????????????????????????? | | ?????????????????????????????????????????? | | ?????????????????????????????????????????? | | ?????????????????????????????????????????? | | ?????????????????????????????????????????? | | ?????????????????????????????????????????? | | ?????????????????????????????????????????? | | ?????????????????????????????????????????? | | ?????????????????????????????????????????? | | ?????????????????????????????????????????? | | ?????????????????????????????????????????? | +----------------------------------------------------+ Best States ------------- Heat Dissipation 25 Energy Generation 15 Energy Capacity 200 Matter Stores 300 Matter Capacity 300 Sight Range 16 Terrain Scan Density 10 Core Shielding 20 Evasion (%) 50 Recoil Reduction 2 Item Schematics ----------------- None Robot Schematics ------------------ None Fabricated ------------ Nothing Repaired ---------- Nothing Alien Tech Used ----------------- None Achievements -------------- Armchair Analyst Challenges ------------ None Game ------ Seed NuclearGravmagBeamcaster Manual? 0 Play Time 00:24:56 Cumulative 24.4 hours Start 2025.07.30 @ 20:52:44 End 2025.07.30 @ 21:15:55 Sessions 1 Manual Loads 0 Difficulty Rogue Special Mode None Game No. 6 Rogue 1 Adventurer 5 Explorer 0 Win Type - Total 2 Types 0/0/2/0/0/0/0/0/0/0 Lore% 18 Gallery% 28 Achievement% 33 Wizard Run 0 Options --------- Layout 1 ASCII 0 Keyboard 1 Movement Arrows Keybinds 0 Fullscreen 2 Font 24/Smallcaps Map View 50x35 Zoom Use 0% Tactical HUD 1 Map Filters NONE Filters NONE Steam 1 RUN: a367da6d-c2eb-444a-9fa9-f8b455e13b98